Cogmind - Beta 11 X11 @@@ ROGUE MODE // 2022.03.08 @ 23:02:51 Player: Thr33_1Nt Result: Destroyed by G-67 Veteran with Field Laser Performance ------------- Evolutions (4) 2000 Regions Visited (9) 1800 Robots Destroyed (48) 240 Value Destroyed (1871) 1871 Prototype IDs (33) 660 Alien Tech Used (0) 0 Bonus (1689) 1689 TOTAL SCORE: 8260 Bonus ------- High Alert Combat Kills 226 Follower Combat Kills 463 Entered Garrisons 200 Used RIF Installer 500 Aligned with FarCom 300 Cogmind --------- Core Integrity 0/850 Matter 43/300 Energy 100/100 System Corruption 8% Temperature Cool (21) Movement Core (50) Location -6/Factory Parts ------- > --- POWER (2) -------- (None) > --- PROPULSION (4) --- (None) > --- UTILITY (7) ------ Visual Processing Unit Enhanced Optical Array Enhanced Optical Array Enhanced Optical Array > --- WEAPON (2) ------- (None) > --- INVENTORY (5) ---- Micro Nuclear Core Improved Trap Scanner Peak State ------------ > --- POWER ------------ Micro Nuclear Core Micro Nuclear Core > --- PROPULSION ------- Airjet Gravmag System Gravmag System Gravmag System > --- UTILITY ---------- Improved Trap Scanner Visual Processing Unit Advanced Melee Analysis Suite Force Booster Advanced ECM Suite Reaction Control System Drone Bay > --- WEAPON ----------- Heavy Particle Gun Spear > --- INVENTORY -------- Light Angular Momentum Engine Airjet Airjet Heavy Rocket Launcher [Rating: 60] Favorites ----------- Power Micro Nuclear Core Engine Light Deuterium Engine Power Core Micro Nuclear Core Propulsion Airjet Leg Aluminum Leg Wheel Wheel Hover Unit Airjet Flight Unit Flight Unit Utility Visual Processing Unit Device Advanced ECM Suite Storage Medium Storage Unit Processor Visual Processing Unit Hackware Hacking Suite Protection Layered Light Armor Plating Weapon Spear Energy Gun Heavy Particle Gun Ballistic Gun Enhanced Autogun Launcher Heavy Rocket Launcher Impact Weapon Shock Maul Slashing Weapon Makeshift Axe Piercing Weapon Spear Build | -11 -10 -10 -10 -9 -8 -8 -8 -7 -6 ------- Run | Scr Mat Min Exi Min Mat Sto Gar Fac Fac Slots Evolved 8 | . . . . . 4 . . 2 2 Power 1 | . . . . . . . . 1 . Propulsion 2 | . . . . . 2 . . . . Utility 5 | . . . . . 2 . . 1 2 Weapon . | . . . . . . . . . . Parts Attached 134 | 6 4 14 1 3 7 37 11 26 25 Power 19 | 1 1 2 . . 1 3 . 3 8 Engine 10 | 1 1 2 . . . 3 . 1 2 Core 9 | . . . . . 1 . . 2 6 Reactor . | . . . . . . . . . . Propulsion 33 | 2 1 6 . . 2 6 3 8 5 Treads . | . . . . . . . . . . Leg 7 | . . 4 . . 1 1 1 . . Wheel 4 | 2 1 . . . . 1 . . . Hover 10 | . . . . . . . . 8 2 Flight 12 | . . 2 . . 1 4 2 . 3 Utility 42 | 1 2 1 1 3 1 11 3 11 8 Device 26 | . 1 1 1 3 1 6 2 7 4 Storage 2 | 1 1 . . . . . . . . Processor 5 | . . . . . . 1 . . 4 Hackware 1 | . . . . . . 1 . . . Protection 8 | . . . . . . 3 1 4 . Artifact . | . . . . . . . . . . Weapon 40 | 2 . 5 . . 3 17 5 4 4 Energy Gun 12 | . . 1 . . 1 5 . 3 2 Energy Cannon . | . . . . . . . . . . Ballistic Gun 15 | 2 . 2 . . 1 7 3 . . Ballistic Cannon . | . . . . . . . . . . Launcher 4 | . . 2 . . . . . . 2 Special Weapon . | . . . . . . . . . . Impact Weapon 2 | . . . . . . . 2 . . Slashing Weapon 6 | . . . . . 1 5 . . . Piercing Weapon 1 | . . . . . . . . 1 . Special Melee Weapon . | . . . . . . . . . . Unidentified Prototypes 11 | . . . 1 . . 6 1 1 2 Parts Lost 22 | . . 3 . . . 4 2 . 13 Power 2 | . . . . . . . . . 2 Propulsion 9 | . . 2 . . . 2 1 . 4 Utility 6 | . . . . . . 2 . . 4 Weapon 5 | . . 1 . . . . 1 . 3 Highest Loss Streak 9 | . . 3 . . . 2 1 . 9 To Critical Strikes . | . . . . . . . . . . Average Slot Usage (%) 91 | . 88 98 100 100 83 95 93 99 80 Engine 5 | . 14 14 14 14 7 3 9 7 . Core 6 | . . . . . 1 5 . 7 12 Leg 2 | . . 17 . . 3 3 6 . . Wheel 1 | . 26 3 . . . . . . . Hover 9 | . . . . . . . . 28 14 Flight 14 | . . 6 28 28 27 31 29 . 8 Device 19 | . 4 16 28 28 27 22 18 18 17 Storage 1 | . 14 11 . . . . . . . Processor 5 | . . . . . . . 9 7 13 Hackware 1 | . . . . . . 6 . . . Protection 3 | . . . . . . 3 5 11 2 Energy Gun 4 | . . 9 14 14 8 2 1 6 2 Ballistic Gun 7 | . 28 15 14 14 6 13 7 . . Piercing Weapon 2 | . . . . . . . . 4 5 Naked Turns . | . . . . . . . . . . Heaviest Build 39 | 11 19 21 7 7 12 16 14 34 39 Greatest Support 35 | 20 20 20 8 8 12 18 20 33 35 Greatest Overweight (x) 8 | 2 . 1 . . . . 1 6 8 Average Overweight (x) . | . . . . . . . . . . Largest Inventory Capacity 10 | 8 10 10 5 5 5 5 5 5 5 Average Capacity 5 | 7 8 8 5 5 5 5 5 5 5 Most Carried 10 | 6 10 10 5 5 5 5 5 5 5 Average Carried 5 | 2 7 8 4 4 4 4 4 4 4 Final Capacity 10 | 8 10 5 5 5 5 5 5 5 5 Final Carried 10 | 6 10 5 5 5 5 5 4 5 2 Class Distribution -------------------- 42% | Mutant 20% | Scavenger-Mutant 11% | Scavenger-Scout 10% | Scavenger-Sprinter 4% | Ninja Dominant Class ---------------- Mutant | -10/Materials Mutant | -10/Mines Scavenger-Mutant | -10/Exiles Scavenger-Mutant | -9/Mines Scavenger-Mutant | -8/Materials Scavenger-Sprinter | -8/Storage Scavenger-Scout | -8/Garrison Mutant | -7/Factory Mutant | -6/Factory Resources | -11 -10 -10 -10 -9 -8 -8 -8 -7 -6 ----------- Run | Scr Mat Min Exi Min Mat Sto Gar Fac Fac Matter Collected 1909 | 159 127 392 . . 102 613 221 210 85 Remotely . | . . . . . . . . . . Salvage Created 1748 | . 81 57 . . 102 642 579 170 117 Parts 100 | . 8 . . . 7 42 18 11 14 Haulers Intercepted . | . . . . . . . . . . Recyclers Shooed . | . . . . . . . . . . Parts Field Recycled . | . . . . . . . . . . Retrieved Matter . | . . . . . . . . . . Parts Self-Destructed . | . . . . . . . . . . Prevented . | . . . . . . . . . . Kills | -11 -10 -10 -10 -9 -8 -8 -8 -7 -6 ------- Run | Scr Mat Min Exi Min Mat Sto Gar Fac Fac Combat Hostiles Destroyed 47 | . 2 8 . . 2 9 18 3 5 Melee 11 | . . . . . . . 5 3 3 Guns 19 | . 2 2 . . 2 9 4 . . Cannons 1 | . . . . . . . 1 . . AOE 8 | . . 6 . . . . . . 2 Classes Destroyed 13 | . 1 1 . . 2 5 3 1 . Worker 3 | . . . . . . 2 . . 1 Builder 1 | . . . . . . 1 . . . Recycler 1 | . . . . . . 1 . . . Operator 1 | . . . . . . 1 . . . Watcher 3 | . . . . . . 2 1 . . Swarmer 6 | . . . . . . . 3 . 3 Saboteur 6 | . . . . . . . 6 . . Grunt 11 | . 2 . . . . 4 5 . . Brawler 1 | . . . . . . . 1 . . Sentry 8 | . . . . . 1 5 . 2 . Hunter 4 | . . . . . 1 . 3 . . Programmer 3 | . . . . . . . . 1 2 Assembled 8 | . . 8 . . . . . . . Best Kill Streak 7 | . 1 4 . . 1 5 7 2 3 Combat Bots Only 6 | . 1 4 . . 1 2 6 2 3 Max Kills in Single Turn 2 | . 1 2 . . 1 2 1 1 2 Gunslinging . | . . . . . . . . . . Exploded 2 | . . 2 . . . . . . 2 Melee 1 | . . . . . . . 1 1 1 Uniques/NPCs Destroyed . | . . . . . . . . . . Combat | -11 -10 -10 -10 -9 -8 -8 -8 -7 -6 -------- Run | Scr Mat Min Exi Min Mat Sto Gar Fac Fac Damage Taken 3722 | . 76 516 . . 172 792 319 171 1676 Core 1284 | . 36 91 . . . 228 57 20 852 Absorbed by Shields 16 | . . . . . . . . 16 . Redirected to Shielding 29 | . . . . . . . 11 18 . Regen/Repaired (Parts) 70 | . 18 . . . . 31 . 21 . Core Remaining (%) 73 | 100 . . . 49 . . 48 97 . Volleys Fired 96 | . 7 24 . . 13 41 7 . 4 Largest 2 | . 2 2 . . 2 2 2 . 1 Hottest 91 | . 40 60 . . 91 80 80 . 55 Shots Fired 173 | . 14 43 . 1 15 81 13 . 6 Gun 164 | . 14 37 . 1 15 81 13 . 3 Cannon . | . . . . . . . . . . Launcher 9 | . . 6 . . . . . . 3 Special . | . . . . . . . . . . Kinetic 114 | . 14 26 . 1 5 60 8 . . Thermal 50 | . . 11 . . 10 21 5 . 3 Explosive 9 | . . 6 . . . . . . 3 Electromagnetic . | . . . . . . . . . . Robot Hit Streak 13 | . 6 3 . . 5 13 4 . 3 Robot Miss Streak 6 | . 6 2 . . 3 3 4 . 2 Penetration Max 1 | . . . . . 1 . . . . Secondary Targets . | . . . . . . . . . . Shots Hit Robots 143 | . 6 23 . . 10 55 26 9 14 Core Hits 72 | . 4 15 . . 5 23 7 5 13 Critical Kills 3 | . 1 1 . . . 1 . . . Critical Parts Destroyed 6 | . . . . . 1 . 5 . . Critical Strikes 12 | . 1 1 . . 1 1 7 1 . Burn 1 | . . . . . . . 1 . . Destroy 4 | . 1 1 . . 1 1 . . . Smash 6 | . . . . . . . 6 . . Impale 1 | . . . . . . . . 1 . Melee Attacks 108 | . . . . . 1 7 33 30 37 Impact 36 | . . . . . . . 33 3 . Slashing 8 | . . . . . 1 7 . . . Piercing 64 | . . . . . . . . 27 37 Sneak Attacks 10 | . . . . . . 1 9 . . Combat Hostiles 2 | . . . . . . . 2 . . Follow-up Attacks . | . . . . . . . . . . Damage Inflicted 5274 | . 57 500 . . 231 1170 2058 297 961 Guns 1715 | . 57 191 . . 231 1062 141 . 33 Cannons . | . . . . . . . . . . Explosions 858 | . . 309 . . . . . . 549 Melee 2701 | . . . . . . 108 1917 297 379 Ramming . | . . . . . . . . . . Kinetic 1098 | . 57 125 . . 129 706 81 . . Thermal 617 | . . 66 . . 102 356 60 . 33 Explosive 858 | . . 309 . . . . . . 549 Electromagnetic . | . . . . . . . . . . Impact 1917 | . . . . . . . 1917 . . Slashing 108 | . . . . . . 108 . . . Piercing 676 | . . . . . . . . 297 379 Highest Corruption 8 | . 1 1 1 1 . 1 1 . 8 Average Corruption 2 | . 1 1 1 1 . 1 1 . 5 Corruption Purged . | . . . . . . . . . . Corruption Blocked . | . . . . . . . . . . Effects 45 | . 1 3 2 3 . . 3 . 33 Message Errors 9 | . . . 1 . . . . . 8 Matter Fused 14 | . 1 2 . 1 . . 2 . 8 Heat Flow Errors 5 | . . . . . . . . . 5 Energy Discharges 7 | . . . . 1 . . . . 6 Data Loss (minor) 5 | . . 1 . . . . . . 4 Misfires 3 | . . . . 1 . . . . 2 Alerts 1 | . . . 1 . . . . . . Weapon Failures 1 | . . . . . . . 1 . . Overload Shots . | . . . . . . . . . . Overflow Damage 1286 | . . 1 . . . . 1253 . 32 Projectiles 250 | . . . . . . . 250 . . Explosions 15 | . . 1 . . . . . . 14 Melee 1021 | . . . . . . . 1003 . 18 Knockbacks 5 | . . . . . . . 5 . . Impact 3 | . . . . . . . 3 . . Kinetic . | . . . . . . . . . . Secondary 2 | . . . . . . . 2 . . Self-Inflicted Damage 171 | . . 75 . . . . . . 96 Shots 5 | . . 2 . . . . . . 3 Rammed . | . . . . . . . . . . Targets Rammed . | . . . . . . . . . . Kicked . | . . . . . . . . . . Crushed . | . . . . . . . . . . Highest Temperature 237 | . 6 40 . 6 80 75 30 . 237 Average Temperature 46 | . 6 17 . 6 31 26 15 . 84 Received Heat Transfer 871 | . 18 . . . 9 261 45 58 480 Siege Activations . | . . . . . . . . . . Robots Corrupted . | . . . . . . . . . . Combat Hostiles . | . . . . . . . . . . Parts Fried 11 | . . . . . . . 11 . . Impact Corruptions 30 | . . . . . . . 30 . . Robots Melted . | . . . . . . . . . . Combat Hostiles . | . . . . . . . . . . Parts Melted 2 | . . . . . 1 1 . . . Heat Transferred 1297 | . . 150 . . 222 666 185 . 74 Parts Sabotaged . | . . . . . . . . . . Parts Stolen . | . . . . . . . . . . Parts Stripped . | . . . . . . . . . . Power Chain Reactions . | . . . . . . . . . . Missiles Intercepted . | . . . . . . . . . . Alert | -11 -10 -10 -10 -9 -8 -8 -8 -7 -6 ------- Run | Scr Mat Min Exi Min Mat Sto Gar Fac Fac Peak Influence 809 | . 142 154 . . 75 610 809 538 204 Initial 424 | . . 55 . . . 31 396 424 135 Average 180 | . 85 78 . . 27 181 584 378 59 Maximum Alert Level 3 | . . . . . . 2 3 2 1 Low Security (%) 67 | 100 100 100 . 100 100 66 . . 99 Level 1 13 | . . . . . . 9 14 56 . Level 2 17 | . . . . . . 24 60 43 . Level 3 1 | . . . . . . . 25 . . Level 4 . | . . . . . . . . . . Level 5 . | . . . . . . . . . . High Security . | . . . . . . . . . . Max Security . | . . . . . . . . . . Squads Dispatched 13 | . 1 . . . . 5 . 2 5 Investigation 4 | . . . . . . 2 . 2 . Extermination 3 | . . . . . . . . . 3 Reinforcement 6 | . 1 . . . . 3 . . 2 Assault . | . . . . . . . . . . Garrison . | . . . . . . . . . . Intercept . | . . . . . . . . . . Searches Triggered . | . . . . . . . . . . Construction Impeded . | . . . . . . . . . . Haulers Reinforced . | . . . . . . . . . . Active Scanning Responses . | . . . . . . . . . . Cargo Convoy Interrupts . | . . . . . . . . . . Stealth | -11 -10 -10 -10 -9 -8 -8 -8 -7 -6 --------- Run | Scr Mat Min Exi Min Mat Sto Gar Fac Fac Distress Signals 9 | . . 1 . . 3 4 . 1 . Communications Jammed . | . . . . . . . . . . Distress Signals . | . . . . . . . . . . Times Spotted 97 | . 10 8 . . 5 31 10 4 29 Peak Tracking Total 13 | . 5 4 . . 4 5 3 3 13 Tactical Retreats 10 | . 1 . . . . 2 1 1 5 Traps | -11 -10 -10 -10 -9 -8 -8 -8 -7 -6 ------- Run | Scr Mat Min Exi Min Mat Sto Gar Fac Fac Traps Triggered 9 | . . . . . . . 6 2 1 Indirectly . | . . . . . . . . . . Trap Hack Attempts . | . . . . . . . . . . Triggered . | . . . . . . . . . . Disarmed . | . . . . . . . . . . Reprogrammed . | . . . . . . . . . . Reused . | . . . . . . . . . . Traps Extracted . | . . . . . . . . . . Installed . | . . . . . . . . . . Triggered . | . . . . . . . . . . Machines | -11 -10 -10 -10 -9 -8 -8 -8 -7 -6 ---------- Run | Scr Mat Min Exi Min Mat Sto Gar Fac Fac Machines Disabled 7 | . . . . . . 3 1 . 3 Max in Single Turn 2 | . . . . . . 1 1 . 2 Garrison Access 3 | . . . . . . . . 2 1 Garrison Relay 1 | . . . . . . . 1 . . Machines Sabotaged . | . . . . . . . . . . Garrisons Compromised . | . . . . . . . . . . Overloaded Fab Kills . | . . . . . . . . . . Hacking | -11 -10 -10 -10 -9 -8 -8 -8 -7 -6 --------- Run | Scr Mat Min Exi Min Mat Sto Gar Fac Fac Machines Accessed 35 | . 2 . 5 . . 10 . 13 5 Terminals 21 | . 1 . . . . 8 . 8 4 Fabricators . | . . . . . . . . . . Repair Stations 4 | . 1 . . . . 1 . 2 . Recycling Units 1 | . . . . . . . . 1 . Scanalyzers . | . . . . . . . . . . Garrison Access 4 | . . . . . . 1 . 2 1 Total Hacks 116 | . 4 . 50 . . 22 . 30 10 Successful 88 | . 3 . 50 . . 11 . 18 6 Failed 28 | . 1 . . . . 11 . 12 4 Catastrophic 7 | . . . . . . 4 . 3 . Database Lockouts . | . . . . . . . . . . Manual 16 | . . . 1 . . 8 . 6 1 Terminals 48 | . 2 . . . . 17 . 20 9 Fabricators . | . . . . . . . . . . Repair Stations 11 | . 2 . . . . 4 . 5 . Recycling Units 2 | . . . . . . . . 2 . Scanalyzers . | . . . . . . . . . . Garrison Access 5 | . . . . . . 1 . 3 1 Terminal Hacks 75 | . 1 . 50 . . 8 . 11 5 Record 57 | . . . 49 . . . . 6 2 Part Schematic 2 | . . . . . . 1 . 1 . Robot Analysis 1 | . . . . . . 1 . . . Open Door 3 | . . . . . . 3 . . . Open DSF 2 | . . . . . . . . 1 1 Level Access Points 1 | . . . . . . . . . 1 Branch Access Points 1 | . . . . . . . . 1 . Unreport Threat 1 | . . . . . . . . . 1 Locate Traps 1 | . 1 . . . . . . . . Patrol Status 1 | . . . . . . 1 . . . Zone Layout 4 | . . . . . . 2 . 2 . EX-Prototype ID Bank 1 | . . . 1 . . . . . . Fabricator Hacks . | . . . . . . . . . . Repair Station Hacks 7 | . 2 . . . . 2 . 3 . Scan Component 4 | . 1 . . . . 1 . 2 . Repair 3 | . 1 . . . . 1 . 1 . Recycling Unit Hacks 1 | . . . . . . . . 1 . Report Inventory 1 | . . . . . . . . 1 . Scanalyzer . | . . . . . . . . . . Garrison Access Hacks 5 | . . . . . . 1 . 3 1 Unlock Access 1 | . . . . . . 1 . . . Seal Access 3 | . . . . . . . . 2 1 Coupler Status 1 | . . . . . . . . 1 . Unauthorized Hacks . | . . . . . . . . . . Terminals . | . . . . . . . . . . Fabricators . | . . . . . . . . . . Repair Stations . | . . . . . . . . . . Recycling Units . | . . . . . . . . . . Scanalyzers . | . . . . . . . . . . Garrison Access . | . . . . . . . . . . Data Cores Recovered . | . . . . . . . . . . Used . | . . . . . . . . . . Hacking Detections 26 | . 2 . . . . 8 . 12 4 Full Trace Events 5 | . . . . . . 4 . 1 . Feedback Events 1 | . . . . . . 1 . . . Corruption 1 | . . . . . . 1 . . . Feedback Blocked . | . . . . . . . . . . Robot Schematics Acquired . | . . . . . . . . . . Robots Built . | . . . . . . . . . . Authchips . | . . . . . . . . . . Time . | . . . . . . . . . . Total Robot Build Rating . | . . . . . . . . . . Part Schematics Acquired 2 | . . . . . . 1 . 1 . Parts Built . | . . . . . . . . . . Authchips . | . . . . . . . . . . Time . | . . . . . . . . . . Total Part Build Rating . | . . . . . . . . . . Parts Repaired 3 | . 1 . . . . 1 . 1 . Time 112 | . 26 . . . . 60 . 26 . Parts Recycled . | . . . . . . . . . . Recycled Matter . | . . . . . . . . . . Retrieved Matter . | . . . . . . . . . . Retrieved Components . | . . . . . . . . . . Parts Scanalyzed . | . . . . . . . . . . Part Schematics Acquired . | . . . . . . . . . . Parts Damaged . | . . . . . . . . . . Bothacking | -11 -10 -10 -10 -9 -8 -8 -8 -7 -6 ------------ Run | Scr Mat Min Exi Min Mat Sto Gar Fac Fac Used RIF Installer 1 | . . . . . . . 1 . . Robots Hacked . | . . . . . . . . . . Non-combat . | . . . . . . . . . . Combat . | . . . . . . . . . . Robot Hacks Applied . | . . . . . . . . . . Relay Couplers Released 5 | . . . . . . . 5 . . Machine Destruction 5 | . . . . . . . 5 . . Fabnet Peak Effective % . | . . . . . . . . . . Robots Rewired . | . . . . . . . . . . Allies Hacked . | . . . . . . . . . . Hacks Repelled . | . . . . . . . . . . Allies | -11 -10 -10 -10 -9 -8 -8 -8 -7 -6 -------- Run | Scr Mat Min Exi Min Mat Sto Gar Fac Fac Total Allies 11 | . . 1 . . . 10 . . . Largest Group 10 | . . 1 . . . 10 1 . . Highest-Rated Group 173 | . . 31 . . . 173 29 . . Highest-Rated Ally 31 | . . 31 . . . 29 29 . . Total Orders 2 | . . . . 1 . 1 . . . RETURN 2 | . . . . 1 . 1 . . . Ally Attacks 105 | . . 5 . . . 97 3 . . Total Damage 1443 | . . . . . . 1424 19 . . Kills 14 | . . . . . . 14 . . . Allies Corrupted . | . . . . . . . . . . Allies Melted 1 | . . 1 . . . . . . . Intel | -11 -10 -10 -10 -9 -8 -8 -8 -7 -6 ------- Run | Scr Mat Min Exi Min Mat Sto Gar Fac Fac Robot Analysis Total 1 | . . . . . . 1 . . . Derelict Logs Recovered 1 | . . . . 1 . . . . . Drone Launches 4 | . . . 1 . 1 2 . . . Drone Recoveries 3 | . . . . 1 1 1 . . . Exploration | -11 -10 -10 -10 -9 -8 -8 -8 -7 -6 ------------- Run | Scr Mat Min Exi Min Mat Sto Gar Fac Fac Turns Passed 6501 | 48 274 618 243 184 169 1477 427 1116 1945 Spaces Moved 5858 | 43 233 578 640 477 79 936 361 1497 1014 Core 26 | 8 . . . . . . . 1 17 Treads . | . . . . . . . . . . Legs 220 | . . 220 . . . . . . . Wheels 281 | 35 233 13 . . . . . . . Hover 1975 | . . . . . . . . 1376 599 Flight 3356 | . . 345 640 477 79 936 361 120 398 Fastest Speed 26 | 50 80 37 37 37 34 28 26 26 34 Average Speed 48 | 76 80 73 37 37 37 33 35 54 47 Slowest Speed 450 | 150 80 190 37 37 44 44 122 350 450 Overloaded Moves . | . . . . . . . . . . Propulsion Burnouts . | . . . . . . . . . . Robots Hopped 17 | . . 6 . 3 1 6 . 1 . Cave-ins Triggered 1 | . . . . . . 1 . . . Exploration Rate (%) 51 | 4 41 84 96 82 5 83 55 43 23 Regions Visited 9 Branch Regions 4 Pre-discovered Areas 1 | . . . 1 . . . . . . Known Exits Taken 1 | . . . . . . 1 . . . Unknown Exits Taken 7 | 1 1 1 1 1 1 . . 1 . Scrap Searched 2 | . . 1 . 1 . . . . . Spaces Dug 39 | . . . . . . 3 3 14 19 Terrain Destroyed 127 | . . 56 . . . 3 3 14 51 Melee 39 | . . . . . . 3 3 14 19 Projectile . | . . . . . . . . . . AOE 88 | . . 56 . . . . . . 32 Terrain Rammed . | . . . . . . . . . . Walls Destroyed . | . . . . . . . . . . Machines Disabled . | . . . . . . . . . . Actions | -11 -10 -10 -10 -9 -8 -8 -8 -7 -6 --------- Run | Scr Mat Min Exi Min Mat Sto Gar Fac Fac Total 9191 | 54 307 733 646 480 200 2028 578 1746 2419 Wait 2760 | . 58 95 . . 92 975 75 153 1312 Move 5815 | 42 232 565 639 470 76 924 359 1494 1014 Hop 16 | . . 6 . 3 1 5 . 1 . Pick Up 55 | 6 4 10 3 2 6 14 1 5 4 Fast Attach 69 | 6 3 2 . . . 15 11 17 15 Attach 21 | . . 4 . 1 3 5 2 2 4 Detach 7 | . . 1 . . . 2 . 1 3 Swap 49 | . 1 8 1 2 4 17 3 7 6 Drop 101 | . 2 18 3 2 4 23 6 23 20 Fire 96 | . 7 24 . . 13 41 7 . 4 Melee 108 | . . . . . 1 7 33 30 37 Ram . | . . . . . . . . . . Kick . | . . . . . . . . . . Crush . | . . . . . . . . . . Escape Stasis 94 | . . . . . . . 81 13 . Rewire . | . . . . . . . . . . Trap . | . . . . . . . . . . Miscellaneous . | . . . . . . . . . . Route ------- -11/Scrapyard -10/Materials (discovered 2 exits: [*Mat] / [*Min]) -10/Mines (discovered 2 exits: [*Mat] / *Exi) -10/Exiles (discovered 2 exits: [*Min x2]) -9/Mines -8/Materials -8/Storage -8/Garrison (discovered 2 exits: *Fac x2) -7/Factory (discovered 3 exits: *Fac / *Low x2) -6/Factory (discovered 5 exits: Fac x4 / [*Low]) History --------- Turn | Location | Event 3 | -11/Scrapyard | Discovered new exit (range 15) 49 | -11/Scrapyard | Entered Materials 238 | -10/Materials | Discovered new exit (range 4) 271 | -10/Materials | Repaired Wheel 301 | -10/Materials | Discovered new exit (range 5) 311 | -10/Materials | Build established: Mutant 323 | -10/Materials | Entered Mines 324 | -10/Mines | Assembled infested the area 448 | -10/Mines | Received a Rocket Launcher from a helpful Derelict 452 | -10/Mines | Lost 3 parts (2n1w) 525 | -10/Mines | Received a Mining Laser from a helpful Derelict 652 | -10/Mines | Core integrity fell below 50% 864 | -10/Mines | Deemed a non-threat by the Exiles lab entrance 864 | -10/Mines | Discovered new exit (range 6) 883 | -10/Mines | Discovered new exit (range 8) 941 | -10/Mines | Entered Exiles 948 | -10/Exiles | Discovered new exit (range 15) 967 | -10/Exiles | Met 8R-AWN 973 | -10/Exiles | Met EX-HEX 986 | -10/Exiles | Met EX-BIN 1016 | -10/Exiles | Aligned with FarCom system 1017 | -10/Exiles | Given EX-Vault access code 1026 | -10/Exiles | Opened EX-Vault 1028 | -10/Exiles | Found Prototype Device 1029 | -10/Exiles | Identified Supersonic Drone Bay 1056 | -10/Exiles | Warned to stay clear of 0b10 Research branches 1081 | -10/Exiles | Met EX-DEC 1100 | -10/Exiles | Learned location of Zion (-7) 1107 | -10/Exiles | Build established: Scavenger-Mutant 1116 | -10/Exiles | Visited The Gauntlet 1180 | -10/Exiles | Discovered new exit (range 14) 1184 | -10/Exiles | Left Exiles lab with Supersonic Drone Bay 1184 | -10/Exiles | Entered Mines 1184 | -9/Mines | Accompanied by 1 ally 1196 | -9/Mines | Met a Derelict bent on vengeance 1233 | -9/Mines | A weapon hastily lodged in a ceiling crevice suddenly fell to the ground 1279 | -9/Mines | Learned location of 1 exit from Lower Caves 1311 | -9/Mines | Found a hidden stash of uninstalled traps 1348 | -9/Mines | Discovered new exit (range 10) 1368 | -9/Mines | Entered Materials 1368 | -8/Materials | Evolved 4 slots: Propulsion x2, Utility x2 1380 | -8/Materials | Discovered new exit (range 6) 1537 | -8/Materials | Entered Storage 2231 | -8/Storage | Build established: Scavenger-Sprinter 2388 | -8/Storage | Crushed by falling debris 2558 | -8/Storage | Assisted by bots powering up and referring to "LRC-V3" 2932 | -8/Storage | Identified exit to Garrison 2998 | -8/Storage | Repaired Imp. VTOL Module 3014 | -8/Storage | Entered Garrison 3014 | -8/Garrison | Accompanied by 1 ally 3064 | -8/Garrison | Triggered checkpoint 3095 | -8/Garrison | Garrison Relay disabled 3210 | -8/Garrison | Discovered new exit (range 8) 3230 | -8/Garrison | Attempted to access garrison exit controls, blocked by remote lockdown 3236 | -8/Garrison | Triggered checkpoint 3238 | -8/Garrison | Triggered checkpoint 3284 | -8/Garrison | Core integrity fell below 50% 3315 | -8/Garrison | Build established: Scavenger-Scout 3431 | -8/Garrison | Discovered new exit (range 8) 3434 | -8/Garrison | Installed Relay Interface Framework 3441 | -8/Garrison | Entered Factory 3441 | -7/Factory | Evolved 2 slots: Power x1, Utility x1 3769 | -7/Factory | Build established: Scavenger-Mutant 3818 | -7/Factory | Discovered new exit (range 8) 4001 | -7/Factory | Repaired Propulsion Shielding 4104 | -7/Factory | Discovered new exit (range 18) 4231 | -7/Factory | Build established: Mutant 4395 | -7/Factory | Identified exit to Lower Caves 4557 | -7/Factory | Entered another Factory area 4557 | -6/Factory | Evolved 2 slots: Utility x2 5293 | -6/Factory | Build established: Ninja 5899 | -6/Factory | Build established: Mutant 6411 | -6/Factory | Discovered new exit (range 22) 6456 | -6/Factory | Identified exit to Factory 6490 | -6/Factory | Core integrity fell below 50% 6499 | -6/Factory | Core integrity fell below 20% 6502 | -6/Factory | Destroyed by G-67 Veteran with Field Laser Last Messages --------------- 06487_ U-05 Engineer lays Concrete. 06488_ U-05 Engineer builds a Wall. 06488_ Mic. Nuclear Core destroyed. 06489_ Critical hit (Burn: +37). 06489_ Spear destroyed. 06492_ Lgt. Angular Momentum Engine destroyed. 06492_ Hvy. Particle Gun destroyed. 06493_ Critical hit (Burn: +37). 06493_ U-05 Engineer lays Concrete. 06495_ U-05 Engineer builds a Wall. 06495_ Adv. Melee Analysis Suite destroyed. 06496_ Critical hit (Burn: +37). 06496_ U-05 Engineer builds a Wall. 06497_ U-05 Engineer lays Concrete. 06498_ P-60 Hacker resets G-50 Soldier, system corruption cleaned. 06499_ U-05 Engineer lays Concrete. 06499_ U-05 Engineer builds a Door. 06501_ Critical hit (Burn: +37). 06502_ U-05 Engineer builds a Wall. [Achievement: 5k Club] Map ----- +----------------------------------------------------+ | ????????????????????#########????###########+####? | | ????????????????????# #????# #? | | ????????????????????# ###### ## | | ????????????????????# # | | ????????????????????# """ + | | ????????############# """ # | | ????????# # """ # ] | | ????????# """ # # | | ????????# """"" ######### ### | | ????????# """"" ######### """ #?? | | ????????# # """ " "" ### | | ????????# u # u """ "R"" # | | ????????# " gu """ """ # | | ????????# " u# # | | ????????# g # | | ????????# Y #g #############/######### | | ????????# g # #?######## #???# | | ????????# p g g #?# # #???# | | ????????# [ g #?# # #???# | | ???????########## # ### # #???##+ | | "" %= g # # #????# | | ???????#############g # "" # #????# | | ???????????????????# # "" # ###### | | ???????????????????# + """ # + | | ???????????????????#* # """ # ####### | | ???????????????????# @ # """ ##########?????? | | ???????????????????# ! # #??????????????? | | ???????????????????## #########??????????????? | | ????????????????????# #??????????????????????? | | ????????????????????# #??????????????????????? | | ????????????????????# +??????????????????????? | | ????????????????????# #??????????????????????? | | ????????????????????# #??????????????????????? | | ????????????????????# #??????????????????????? | | ????????????????????# #??????????????????????? | | ????????????????????# #??????????????????????? | | ????????????????????# #??????????????????????? | | ????????????????????+ #??????????????????????? | | ????????????????????# #??????????????????????? | | ????????????????????# #??????????????????????? | | ????????????????????# #??????????????????????? | | ????????????????????# #??????????????????????? | | ????????????????????# #??????????????????????? | | ????????????????????# #??????????????????????? | | ????????????????????# ???????????????????????? | | ????????????????????? ???????????????????????? | | ??????????????????????? ???????????????????????? | | ?????????????????????????????????????????????????? | | ?????????????????????????????????????????????????? | | ?????????????????????????????????????????????????? | +----------------------------------------------------+ Best States ------------- Heat Dissipation 59 Energy Generation 26 Energy Capacity 340 Matter Stores 300 Matter Capacity 300 Sight Range 22 Robot Scan Range 15 Terrain Scan Density 10 ECM Strength 2 Armor Coverage 150 Resistance: TH 20 Resistance: EX 25 Propulsion Shielding 33 Evasion (%) 64 Melee Accuracy 8 Force Boost 20 Offensive Hacking 10 Item Schematics ----------------- Recoil Stabilizer | -8/Storage | Hacked Adv. Terrain Scan Processor | -7/Factory | Hacked Robot Schematics ------------------ None Fabricated ------------ Nothing Alien Tech Used ----------------- None Achievements -------------- 5k Club Hard Hitter I Survived The Infestation Librarian Maybe Next Time I'll Detach My Launcher Part-time Excavator Part-time Mechanic Please Form A Line Serviceable Loadout The More The Merrier Tourist Unlikely Earthworm Challenges ------------ None Game ------ Seed CoreDecoderWheel Manual? 0 Play Time 02:08:07 Cumulative 6.2 hours Start 2022.03.08 @ 19:01:49 End 2022.03.08 @ 23:02:51 Sessions 3 Manual Loads 0 Difficulty Rogue Special Mode None Game No. 4 Rogue 4 Adventurer 0 Explorer 0 Win Type - Total 0 Types 0/0/0/0/0/0/0/0/0 Lore% 12 Gallery% 10 Achievement% 8 Wizard Run 0 Options --------- ASCII 0 Keyboard 0 Movement Mouse Keybinds 0 Fullscreen 1 Font 18/SmallcapsGlow Map View 76x50 Tactical HUD 1 Map Filters NONE Filters NONE Steam 1 RUN: 94bbb0ff-e8cf-4a85-8564-513bafac8147